[Event "Early-Titled-Tuesday-Blitz-January-16-2024"]
[Site "Chess.com"]
[Date "2024.01.16"]
[Round "8"]
[White "Let_it_be_1"]
[Black "Carlitus2004"]
[Result "1/2-1/2"]
[WhiteElo "2602"]
[BlackElo "2446"]
[TimeControl "180+1"]
[EndTime "9:33:25 PST"]
[Termination "Game drawn by repetition"]

1. e4 {[%clk 0:03:00.9]} 1... c6 {[%clk 0:02:58.4]} 2. d4 {[%clk 0:03:00.6]}
2... d5 {[%clk 0:02:59.1]} 3. Nd2 {[%clk 0:03:01.2]} 3... dxe4 {[%clk
0:02:55.3]} 4. Nxe4 {[%clk 0:03:02.1]} 4... Bf5 {[%clk 0:02:53.8]} 5. Ng3 {[%clk
0:03:01.8]} 5... Bg6 {[%clk 0:02:54.2]} 6. N1e2 {[%clk 0:03:02.3]} 6... e5
{[%clk 0:02:50]} 7. c3 {[%clk 0:03:02.3]} 7... exd4 {[%clk 0:02:45.7]} 8. Nxd4
{[%clk 0:02:58.1]} 8... Nf6 {[%clk 0:02:43.1]} 9. Bc4 {[%clk 0:02:30.4]} 9...
Be7 {[%clk 0:02:21.9]} 10. O-O {[%clk 0:02:29.1]} 10... O-O {[%clk 0:02:22]} 11.
Ngf5 {[%clk 0:02:23]} 11... Bc5 {[%clk 0:02:18.3]} 12. Bg5 {[%clk 0:02:15]}
12... Nbd7 {[%clk 0:02:17.6]} 13. Re1 {[%clk 0:02:09.7]} 13... Qb6 {[%clk
0:01:58.6]} 14. b4 {[%clk 0:02:03.8]} 14... Bxd4 {[%clk 0:01:58.4]} 15. Nxd4
{[%clk 0:01:57]} 15... Rfe8 {[%clk 0:01:52.9]} 16. Qb3 {[%clk 0:01:32.6]} 16...
h6 {[%clk 0:01:34.6]} 17. Bf4 {[%clk 0:01:29.4]} 17... Qd8 {[%clk 0:01:17.3]}
18. Rad1 {[%clk 0:01:25.1]} 18... Rxe1+ {[%clk 0:01:14.4]} 19. Rxe1 {[%clk
0:01:25]} 19... Qf8 {[%clk 0:01:15.1]} 20. h3 {[%clk 0:01:11.9]} 20... Nb6
{[%clk 0:01:08.3]} 21. Bf1 {[%clk 0:01:07.2]} 21... Re8 {[%clk 0:01:05.9]} 22.
Rd1 {[%clk 0:00:56.5]} 22... Nbd5 {[%clk 0:01:04.3]} 23. Bd2 {[%clk 0:00:47.2]}
23... Ne4 {[%clk 0:01:03.8]} 24. Be1 {[%clk 0:00:47.3]} 24... Qe7 {[%clk
0:00:50.5]} 25. c4 {[%clk 0:00:39.6]} 25... Nc7 {[%clk 0:00:36.4]} 26. b5 {[%clk
0:00:29.1]} 26... cxb5 {[%clk 0:00:24.9]} 27. cxb5 {[%clk 0:00:28.5]} 27... Nc5
{[%clk 0:00:07.1]} 28. Qc4 {[%clk 0:00:25.7]} 28... N7e6 {[%clk 0:00:07]} 29.
Bb4 {[%clk 0:00:23.7]} 29... b6 {[%clk 0:00:07.1]} 30. Nxe6 {[%clk 0:00:20.7]}
30... Qxe6 {[%clk 0:00:06.7]} 31. Bxc5 {[%clk 0:00:21.1]} 31... Qxc4 {[%clk
0:00:04.2]} 32. Bxc4 {[%clk 0:00:21.2]} 32... bxc5 {[%clk 0:00:05.1]} 33. Rd7
{[%clk 0:00:19.6]} 33... Re1+ {[%clk 0:00:03.2]} 34. Kh2 {[%clk 0:00:19.5]}
34... Rc1 {[%clk 0:00:03.9]} 35. Bd5 {[%clk 0:00:17.8]} 35... c4 {[%clk
0:00:01.8]} 36. Rxa7 {[%clk 0:00:16.8]} 36... c3 {[%clk 0:00:02.5]} 37. Rc7
{[%clk 0:00:12.2]} 37... c2 {[%clk 0:00:03.2]} 38. Bb3 {[%clk 0:00:12.4]} 38...
Rb1 {[%clk 0:00:02.5]} 39. Bxc2 {[%clk 0:00:11.7]} 39... Bxc2 {[%clk 0:00:03.4]}
40. Rxc2 {[%clk 0:00:11.2]} 40... Rxb5 {[%clk 0:00:04.3]} 41. a4 {[%clk
0:00:11.8]} 41... Rb3 {[%clk 0:00:02.6]} 42. Ra2 {[%clk 0:00:12.2]} 42... Rb6
{[%clk 0:00:02.5]} 43. a5 {[%clk 0:00:12.7]} 43... Ra6 {[%clk 0:00:03.4]} 44.
Kg3 {[%clk 0:00:12.9]} 44... Kf8 {[%clk 0:00:04.1]} 45. Kf4 {[%clk 0:00:13.6]}
45... Ke7 {[%clk 0:00:05]} 46. Ke5 {[%clk 0:00:14.2]} 46... Kd7 {[%clk
0:00:03.9]} 47. Kd5 {[%clk 0:00:14.8]} 47... Kc7 {[%clk 0:00:04.6]} 48. Kc5
{[%clk 0:00:15.4]} 48... Kb7 {[%clk 0:00:04.7]} 49. Kb5 {[%clk 0:00:15.4]} 49...
Re6 {[%clk 0:00:05.3]} 50. a6+ {[%clk 0:00:13.9]} 50... Ka7 {[%clk 0:00:06]} 51.
Kc5 {[%clk 0:00:14.3]} 51... Rg6 {[%clk 0:00:05.6]} 52. f3 {[%clk 0:00:14.4]}
52... Rf6 {[%clk 0:00:04]} 53. Kd5 {[%clk 0:00:14.4]} 53... Re6 {[%clk
0:00:04.5]} 54. Kd4 {[%clk 0:00:08.1]} 54... Rd6+ {[%clk 0:00:04.3]} 55. Ke5
{[%clk 0:00:08.1]} 55... Re6+ {[%clk 0:00:05]} 56. Kf4 {[%clk 0:00:08.5]} 56...
Rf6+ {[%clk 0:00:05.6]} 57. Ke3 {[%clk 0:00:08.5]} 57... Re6+ {[%clk 0:00:06.1]}
58. Kf4 {[%clk 0:00:08.7]} 58... Rf6+ {[%clk 0:00:06.7]} 59. Ke5 {[%clk
0:00:08.6]} 59... Re6+ {[%clk 0:00:07.1]} 60. Kf5 {[%clk 0:00:08.9]} 60... Rf6+
{[%clk 0:00:07.7]} 61. Ke5 {[%clk 0:00:09.2]} 61... Re6+ {[%clk 0:00:08.3]}
1/2-1/2

[Event "Early-Titled-Tuesday-Blitz-January-16-2024"]
[Site "Chess.com"]
[Date "2024.01.16"]
[Round "8"]
[White "lasRojas"]
[Black "NowInChess"]
[Result "1-0"]
[WhiteElo "2467"]
[BlackElo "2292"]
[TimeControl "180+1"]
[EndTime "9:33:26 PST"]
[Termination "lasRojas won on time"]

1. e4 {[%clk 0:02:58.3]} 1... e6 {[%clk 0:03:00.2]} 2. d4 {[%clk 0:02:58.1]}
2... d5 {[%clk 0:03:00.7]} 3. Nd2 {[%clk 0:02:58.6]} 3... Nc6 {[%clk 0:03:00.3]}
4. Ngf3 {[%clk 0:02:57.8]} 4... Nf6 {[%clk 0:03:00.3]} 5. Bd3 {[%clk 0:02:56.9]}
5... Nb4 {[%clk 0:02:23.3]} 6. O-O {[%clk 0:02:41.1]} 6... Nxd3 {[%clk
0:02:21.1]} 7. cxd3 {[%clk 0:02:41.5]} 7... Be7 {[%clk 0:02:16]} 8. a3 {[%clk
0:02:39.7]} 8... O-O {[%clk 0:02:14.8]} 9. b4 {[%clk 0:02:39.1]} 9... a5 {[%clk
0:02:00.3]} 10. b5 {[%clk 0:02:35.2]} 10... a4 {[%clk 0:02:00.2]} 11. Qc2 {[%clk
0:02:28.5]} 11... Nd7 {[%clk 0:01:45.5]} 12. Rb1 {[%clk 0:02:22.1]} 12... Nb6
{[%clk 0:01:45.2]} 13. Rd1 {[%clk 0:02:19.9]} 13... Bd7 {[%clk 0:01:45.2]} 14.
Ne5 {[%clk 0:02:16.4]} 14... Be8 {[%clk 0:01:37.7]} 15. Qc3 {[%clk 0:02:00.3]}
15... f6 {[%clk 0:01:28.3]} 16. Nef3 {[%clk 0:01:59.9]} 16... Bd7 {[%clk
0:01:21.9]} 17. Nf1 {[%clk 0:01:55.4]} 17... Rc8 {[%clk 0:01:16]} 18. Ne3 {[%clk
0:01:49]} 18... Qe8 {[%clk 0:01:15.1]} 19. Qb2 {[%clk 0:01:40.5]} 19... Qg6
{[%clk 0:01:04.3]} 20. e5 {[%clk 0:01:19.8]} 20... f5 {[%clk 0:00:54.6]} 21. Bd2
{[%clk 0:01:10.3]} 21... f4 {[%clk 0:00:53.7]} 22. Nf1 {[%clk 0:01:10.2]} 22...
Qf5 {[%clk 0:00:52.5]} 23. Bb4 {[%clk 0:01:03.3]} 23... Rf7 {[%clk 0:00:47.6]}
24. Rbc1 {[%clk 0:00:49.7]} 24... g5 {[%clk 0:00:37.6]} 25. Bc5 {[%clk
0:00:30.1]} 25... g4 {[%clk 0:00:31.2]} 26. Ne1 {[%clk 0:00:26]} 26... f3 {[%clk
0:00:20.5]} 27. g3 {[%clk 0:00:25]} 27... h5 {[%clk 0:00:17.8]} 28. Bxb6 {[%clk
0:00:20.3]} 28... cxb6 {[%clk 0:00:17.2]} 29. Rxc8+ {[%clk 0:00:21]} 29... Bxc8
{[%clk 0:00:18]} 30. Qc1 {[%clk 0:00:21.5]} 30... Rf8 {[%clk 0:00:16.4]} 31. Ne3
{[%clk 0:00:21]} 31... Qg5 {[%clk 0:00:13.5]} 32. Nf1 {[%clk 0:00:20.6]} 32...
Qxc1 {[%clk 0:00:12.2]} 33. Rxc1 {[%clk 0:00:20.9]} 33... Bxa3 {[%clk
0:00:12.2]} 34. Ra1 {[%clk 0:00:21]} 34... Bb2 {[%clk 0:00:12.2]} 35. Rxa4
{[%clk 0:00:21.6]} 35... Bxd4 {[%clk 0:00:12.6]} 36. Rxd4 {[%clk 0:00:21.6]}
36... Bd7 {[%clk 0:00:12.9]} 37. Rb4 {[%clk 0:00:21.8]} 37... Ra8 {[%clk
0:00:12.7]} 38. Ne3 {[%clk 0:00:18]} 38... Ra5 {[%clk 0:00:12]} 39. N1c2 {[%clk
0:00:16.5]} 39... Rxb5 {[%clk 0:00:10.9]} 40. Rxb5 {[%clk 0:00:16.7]} 40... Bxb5
{[%clk 0:00:11.8]} 41. d4 {[%clk 0:00:15]} 41... Bd7 {[%clk 0:00:12.4]} 42. Kf1
{[%clk 0:00:14.9]} 42... Kf7 {[%clk 0:00:12.6]} 43. Ke1 {[%clk 0:00:15.3]} 43...
Ba4 {[%clk 0:00:12.5]} 44. Kd2 {[%clk 0:00:15.2]} 44... Bc6 {[%clk 0:00:12.7]}
45. Kd3 {[%clk 0:00:15.7]} 45... b5 {[%clk 0:00:12.9]} 46. Kc3 {[%clk
0:00:16.1]} 46... b6 {[%clk 0:00:12.1]} 47. Kb4 {[%clk 0:00:16]} 47... Ke7
{[%clk 0:00:11.7]} 48. Na3 {[%clk 0:00:16.6]} 48... Kd7 {[%clk 0:00:11.1]} 49.
Nxb5 {[%clk 0:00:17.2]} 49... Bb7 {[%clk 0:00:09.2]} 50. Nc3 {[%clk 0:00:16.9]}
50... Ba6 {[%clk 0:00:09.8]} 51. Na4 {[%clk 0:00:17.1]} 51... Bd3 {[%clk
0:00:08.5]} 52. Nxb6+ {[%clk 0:00:16.8]} 52... Kc6 {[%clk 0:00:08.4]} 53. Na4
{[%clk 0:00:17.3]} 53... Be2 {[%clk 0:00:07]} 54. Nc5 {[%clk 0:00:17.8]} 54...
Bb5 {[%clk 0:00:04.3]} 55. Nxe6 {[%clk 0:00:17.3]} 55... Be2 {[%clk 0:00:05]}
56. Nf4 {[%clk 0:00:17.3]} 56... Kd7 {[%clk 0:00:05.8]} 57. Nexd5 {[%clk
0:00:16.4]} 57... Bf1 {[%clk 0:00:04.5]} 58. Ne3 {[%clk 0:00:16.4]} 58... Be2
{[%clk 0:00:04.1]} 59. d5 {[%clk 0:00:16.9]} 59... Ke7 {[%clk 0:00:04]} 60. Kc5
{[%clk 0:00:17.1]} 60... Kd7 {[%clk 0:00:04.2]} 61. d6 {[%clk 0:00:17.6]} 61...
Ba6 {[%clk 0:00:03.2]} 62. e6+ {[%clk 0:00:18.2]} 62... Ke8 {[%clk 0:00:03.4]}
63. d7+ {[%clk 0:00:18.5]} 63... Ke7 {[%clk 0:00:03.4]} 64. Ned5+ {[%clk
0:00:17.3]} 64... Kd8 {[%clk 0:00:03]} 65. Kd6 {[%clk 0:00:16.9]} 1-0

[Event "Early-Titled-Tuesday-Blitz-January-16-2024"]
[Site "Chess.com"]
[Date "2024.01.16"]
[Round "8"]
[White "campochess"]
[Black "karinachess1"]
[Result "0-1"]
[WhiteElo "2154"]
[BlackElo "2616"]
[TimeControl "180+1"]
[EndTime "9:33:27 PST"]
[Termination "karinachess1 won on time"]

1. e4 {[%clk 0:02:47.2]} 1... e5 {[%clk 0:02:59.1]} 2. Bc4 {[%clk 0:02:45.6]}
2... Nf6 {[%clk 0:02:58]} 3. d3 {[%clk 0:02:45]} 3... c6 {[%clk 0:02:57]} 4. Nc3
{[%clk 0:02:43.7]} 4... Be7 {[%clk 0:02:54.7]} 5. Bg5 {[%clk 0:02:43.3]} 5... h6
{[%clk 0:02:48.9]} 6. Bh4 {[%clk 0:02:41.3]} 6... O-O {[%clk 0:02:46.5]} 7. Nf3
{[%clk 0:02:37.9]} 7... b5 {[%clk 0:02:43.2]} 8. Bb3 {[%clk 0:02:35.8]} 8... a5
{[%clk 0:02:43.3]} 9. a4 {[%clk 0:02:25.8]} 9... b4 {[%clk 0:02:43.4]} 10. Ne2
{[%clk 0:02:25.8]} 10... d5 {[%clk 0:02:40.4]} 11. Nxe5 {[%clk 0:02:23.8]} 11...
Qc7 {[%clk 0:02:18.4]} 12. Bg3 {[%clk 0:02:18]} 12... Bd6 {[%clk 0:02:18.5]} 13.
f4 {[%clk 0:02:05.8]} 13... dxe4 {[%clk 0:02:14.5]} 14. O-O {[%clk 0:01:48.5]}
14... Ba6 {[%clk 0:01:58.7]} 15. Nd4 {[%clk 0:01:41.8]} 15... Bc5 {[%clk
0:01:53.2]} 16. Bf2 {[%clk 0:01:38.6]} 16... Qb6 {[%clk 0:01:53.6]} 17. Nf5
{[%clk 0:01:28.8]} 17... Bxf2+ {[%clk 0:01:53.6]} 18. Rxf2 {[%clk 0:01:26.5]}
18... exd3 {[%clk 0:01:31.6]} 19. cxd3 {[%clk 0:01:25.2]} 19... Nbd7 {[%clk
0:01:21.4]} 20. Nc4 {[%clk 0:01:20.5]} 20... Bxc4 {[%clk 0:01:06.4]} 21. Bxc4
{[%clk 0:01:17.9]} 21... Nc5 {[%clk 0:01:00.8]} 22. Qf3 {[%clk 0:01:15.5]} 22...
Kh7 {[%clk 0:00:51.9]} 23. Kh1 {[%clk 0:01:14.8]} 23... Rad8 {[%clk 0:00:44.7]}
24. d4 {[%clk 0:01:07.3]} 24... Ne6 {[%clk 0:00:43.8]} 25. Rd2 {[%clk
0:00:50.9]} 25... Nxd4 {[%clk 0:00:40.4]} 26. Nxd4 {[%clk 0:00:41.3]} 26... Rxd4
{[%clk 0:00:40.3]} 27. Rxd4 {[%clk 0:00:38.8]} 27... Qxd4 {[%clk 0:00:41.2]} 28.
Qd3+ {[%clk 0:00:38.8]} 28... Qxd3 {[%clk 0:00:40.6]} 29. Bxd3+ {[%clk 0:00:39]}
29... g6 {[%clk 0:00:40.4]} 30. h3 {[%clk 0:00:38.2]} 30... Rd8 {[%clk
0:00:39.1]} 31. Bc4 {[%clk 0:00:38.1]} 31... Kg7 {[%clk 0:00:36.7]} 32. Re1
{[%clk 0:00:37.2]} 32... Rd4 {[%clk 0:00:36.2]} 33. b3 {[%clk 0:00:36.8]} 33...
Rxf4 {[%clk 0:00:35.4]} 34. Re7 {[%clk 0:00:36.6]} 34... Nd5 {[%clk 0:00:35.6]}
35. Ra7 {[%clk 0:00:35.4]} 35... Ne3 {[%clk 0:00:27.4]} 36. Be2 {[%clk
0:00:30.9]} 36... Rf2 {[%clk 0:00:21.9]} 37. Bf3 {[%clk 0:00:30.6]} 37... Rb2
{[%clk 0:00:18.3]} 38. Rxa5 {[%clk 0:00:30.1]} 38... Rxb3 {[%clk 0:00:18.4]} 39.
Rc5 {[%clk 0:00:29.9]} 39... Rc3 {[%clk 0:00:13.8]} 40. Re5 {[%clk 0:00:27.9]}
40... b3 {[%clk 0:00:12.9]} 41. Re8 {[%clk 0:00:23.8]} 41... b2 {[%clk
0:00:12.3]} 42. Rb8 {[%clk 0:00:23.9]} 42... Rc1+ {[%clk 0:00:12.7]} 43. Kh2
{[%clk 0:00:22.9]} 43... Nf1+ {[%clk 0:00:13.1]} 44. Kg1 {[%clk 0:00:21.5]}
44... Nd2+ {[%clk 0:00:13.2]} 45. Kf2 {[%clk 0:00:21]} 45... b1=Q {[%clk
0:00:14.1]} 46. Rxb1 {[%clk 0:00:19.8]} 46... Rxb1 {[%clk 0:00:14.6]} 47. Bxc6
{[%clk 0:00:19.6]} 47... Ra1 {[%clk 0:00:15]} 48. Ke3 {[%clk 0:00:18.3]} 48...
Nc4+ {[%clk 0:00:15.3]} 49. Kd4 {[%clk 0:00:18.2]} 49... Nb6 {[%clk 0:00:15.7]}
50. Kc5 {[%clk 0:00:12.7]} 50... Nxa4+ {[%clk 0:00:15.9]} 51. Kb4 {[%clk
0:00:12.8]} 51... Nb6 {[%clk 0:00:16.3]} 52. Kc5 {[%clk 0:00:12.9]} 52... Nc8
{[%clk 0:00:16.7]} 53. Bd7 {[%clk 0:00:11.7]} 53... Ne7 {[%clk 0:00:17.1]} 54.
Kd6 {[%clk 0:00:11.4]} 54... Nf5+ {[%clk 0:00:17.4]} 55. Ke5 {[%clk 0:00:11.4]}
55... Ra5+ {[%clk 0:00:16.1]} 56. Kf4 {[%clk 0:00:11.2]} 56... Kf6 {[%clk
0:00:16.7]} 57. g4 {[%clk 0:00:10.9]} 57... g5+ {[%clk 0:00:17.1]} 58. Kf3
{[%clk 0:00:08.7]} 58... Ra3+ {[%clk 0:00:17.4]} 59. Kf2 {[%clk 0:00:07.5]}
59... Nh4 {[%clk 0:00:17.5]} 60. Bc6 {[%clk 0:00:03.9]} 60... Rxh3 {[%clk
0:00:17.4]} 61. Kf1 {[%clk 0:00:02.5]} 61... Rc3 {[%clk 0:00:17.4]} 0-1

[Event "Early-Titled-Tuesday-Blitz-January-16-2024"]
[Site "Chess.com"]
[Date "2024.01.16"]
[Round "8"]
[White "Mikhail_Golubev"]
[Black "GrotBchess"]
[Result "1-0"]
[WhiteElo "2532"]
[BlackElo "2308"]
[TimeControl "180+1"]
[EndTime "9:33:30 PST"]
[Termination "Mikhail_Golubev won by resignation"]

1. e4 {[%clk 0:03:00.9]} 1... c5 {[%clk 0:02:59.8]} 2. Nf3 {[%clk 0:03:00.5]}
2... e6 {[%clk 0:03:00]} 3. d4 {[%clk 0:03:00.6]} 3... cxd4 {[%clk 0:03:00.6]}
4. Nxd4 {[%clk 0:03:01]} 4... Nc6 {[%clk 0:03:01.2]} 5. Nc3 {[%clk 0:03:00.9]}
5... Qc7 {[%clk 0:03:01.3]} 6. Be3 {[%clk 0:03:00.2]} 6... a6 {[%clk 0:03:01.4]}
7. a3 {[%clk 0:03:00.1]} 7... Nf6 {[%clk 0:02:58.4]} 8. f4 {[%clk 0:02:59]} 8...
d6 {[%clk 0:02:56]} 9. Qf3 {[%clk 0:02:58]} 9... Nxd4 {[%clk 0:02:55.7]} 10.
Bxd4 {[%clk 0:02:57.5]} 10... b5 {[%clk 0:02:56.2]} 11. g4 {[%clk 0:02:24.2]}
11... e5 {[%clk 0:02:43.2]} 12. Be3 {[%clk 0:01:54.4]} 12... Bxg4 {[%clk
0:02:38.3]} 13. Qg3 {[%clk 0:01:53.6]} 13... Be6 {[%clk 0:02:30]} 14. f5 {[%clk
0:01:51.2]} 14... Bc4 {[%clk 0:02:27.8]} 15. Bg5 {[%clk 0:01:44.5]} 15... Nd7
{[%clk 0:02:06.9]} 16. O-O-O {[%clk 0:01:38.7]} 16... Nb6 {[%clk 0:01:58.8]} 17.
f6 {[%clk 0:01:28.4]} 17... g6 {[%clk 0:01:33.4]} 18. Be3 {[%clk 0:01:27.9]}
18... Na4 {[%clk 0:01:26.2]} 19. Nxa4 {[%clk 0:01:10.1]} 19... bxa4 {[%clk
0:01:23.9]} 20. Bxc4 {[%clk 0:00:41.5]} 20... Qxc4 {[%clk 0:01:22.9]} 21. Kb1
{[%clk 0:00:42]} 21... Rb8 {[%clk 0:01:12]} 22. Bc1 {[%clk 0:00:41.8]} 22... Qb5
{[%clk 0:01:03.2]} 23. Rd5 {[%clk 0:00:36.5]} 23... Qb6 {[%clk 0:00:58.5]} 24.
Rhd1 {[%clk 0:00:35]} 24... h5 {[%clk 0:00:34.9]} 25. Rxe5+ {[%clk 0:00:23.7]}
25... Kd7 {[%clk 0:00:24.7]} 26. Red5 {[%clk 0:00:23.3]} 26... h4 {[%clk
0:00:19.5]} 27. Qh3+ {[%clk 0:00:20.4]} 27... Kc7 {[%clk 0:00:19.5]} 28. e5
{[%clk 0:00:17.9]} 28... Rh5 {[%clk 0:00:17.4]} 29. e6 {[%clk 0:00:12.4]} 29...
Rxd5 {[%clk 0:00:16.4]} 30. Rxd5 {[%clk 0:00:13]} 30... fxe6 {[%clk 0:00:16.5]}
31. Qxe6 {[%clk 0:00:12.1]} 31... Kb7 {[%clk 0:00:16.1]} 32. Qf7+ {[%clk
0:00:10.2]} 32... Ka8 {[%clk 0:00:15.6]} 33. Qxg6 {[%clk 0:00:10.1]} 33... Qc6
{[%clk 0:00:14]} 34. Qd3 {[%clk 0:00:09.3]} 34... Qb6 {[%clk 0:00:12.6]} 35. Qe4
{[%clk 0:00:08.1]} 35... Qb7 {[%clk 0:00:10.5]} 36. Rd4 {[%clk 0:00:07.2]} 36...
Ka7 {[%clk 0:00:06.1]} 37. Qxb7+ {[%clk 0:00:06.1]} 37... Kxb7 {[%clk 0:00:06]}
38. Rxh4 {[%clk 0:00:05.1]} 38... Kc6 {[%clk 0:00:06]} 39. Rxa4 {[%clk
0:00:04.9]} 39... Re8 {[%clk 0:00:03.5]} 40. Rxa6+ {[%clk 0:00:04.9]} 40... Kd5
{[%clk 0:00:04]} 41. c3 {[%clk 0:00:03.3]} 41... Re1 {[%clk 0:00:03.7]} 42. Kc2
{[%clk 0:00:03.1]} 42... Re2+ {[%clk 0:00:03.2]} 43. Kd3 {[%clk 0:00:02.6]}
43... Rxh2 {[%clk 0:00:02.9]} 44. Ra5+ {[%clk 0:00:03.1]} 44... Ke6 {[%clk
0:00:02.4]} 45. b4 {[%clk 0:00:03.4]} 45... Kxf6 {[%clk 0:00:02.4]} 46. a4
{[%clk 0:00:03.7]} 46... Ke6 {[%clk 0:00:03]} 47. Kc4 {[%clk 0:00:03.9]} 47...
Rh3 {[%clk 0:00:03.6]} 48. Kb3 {[%clk 0:00:03.6]} 48... Bg7 {[%clk 0:00:04.2]}
49. Bb2 {[%clk 0:00:04.1]} 49... Be5 {[%clk 0:00:04.3]} 50. Ra6 {[%clk
0:00:04.1]} 50... Kd5 {[%clk 0:00:04.4]} 51. a5 {[%clk 0:00:04.2]} 51... Ke4
{[%clk 0:00:04.6]} 52. Ra8 {[%clk 0:00:04.3]} 52... Kd3 {[%clk 0:00:04.9]} 53.
Rc8 {[%clk 0:00:04.6]} 53... Kd2 {[%clk 0:00:05.1]} 54. a6 {[%clk 0:00:04.8]}
54... Rh7 {[%clk 0:00:05.7]} 55. Rc6 {[%clk 0:00:04.1]} 55... Kd3 {[%clk
0:00:05.2]} 56. b5 {[%clk 0:00:04.1]} 56... d5 {[%clk 0:00:05.6]} 57. b6 {[%clk
0:00:04.3]} 57... d4 {[%clk 0:00:04.1]} 58. a7 {[%clk 0:00:04.1]} 58... dxc3
{[%clk 0:00:04.2]} 59. Bxc3 {[%clk 0:00:04.4]} 59... Bxc3 {[%clk 0:00:04.1]} 60.
Rxc3+ {[%clk 0:00:04.1]} 1-0

[Event "Early-Titled-Tuesday-Blitz-January-16-2024"]
[Site "Chess.com"]
[Date "2024.01.16"]
[Round "8"]
[White "KnightmareJoker"]
[Black "queen_iryna"]
[Result "1-0"]
[WhiteElo "2123"]
[BlackElo "2315"]
[TimeControl "180+1"]
[EndTime "9:33:32 PST"]
[Termination "KnightmareJoker won on time"]

1. e4 {[%clk 0:03:00.9]} 1... d6 {[%clk 0:03:00.9]} 2. d4 {[%clk 0:03:00.5]}
2... Nf6 {[%clk 0:03:01]} 3. Nc3 {[%clk 0:03:00.6]} 3... e5 {[%clk 0:03:01.6]}
4. Nf3 {[%clk 0:02:58.5]} 4... Nbd7 {[%clk 0:03:01.4]} 5. Be3 {[%clk 0:02:57]}
5... Be7 {[%clk 0:02:59.8]} 6. Bc4 {[%clk 0:02:56.9]} 6... c6 {[%clk 0:02:59.4]}
7. O-O {[%clk 0:02:53.8]} 7... b5 {[%clk 0:02:59.1]} 8. Bb3 {[%clk 0:02:48.2]}
8... b4 {[%clk 0:02:59.1]} 9. Ne2 {[%clk 0:02:37.8]} 9... Nxe4 {[%clk
0:02:54.4]} 10. dxe5 {[%clk 0:02:36.3]} 10... Nxe5 {[%clk 0:02:45.1]} 11. Ned4
{[%clk 0:02:04.9]} 11... Nxf3+ {[%clk 0:02:40.2]} 12. Qxf3 {[%clk 0:01:58.8]}
12... d5 {[%clk 0:01:47.1]} 13. Nxc6 {[%clk 0:01:57.8]} 13... Qd6 {[%clk
0:01:43.2]} 14. Nxe7 {[%clk 0:01:51.3]} 14... Kxe7 {[%clk 0:01:43.2]} 15. Rad1
{[%clk 0:01:45.1]} 15... Be6 {[%clk 0:01:42.8]} 16. Rfe1 {[%clk 0:01:36.4]}
16... Rhd8 {[%clk 0:01:31.8]} 17. Bf4 {[%clk 0:01:24.7]} 17... Qc6 {[%clk
0:01:20.4]} 18. Qe2 {[%clk 0:00:51.9]} 18... Kf8 {[%clk 0:01:12]} 19. f3 {[%clk
0:00:48.4]} 19... Nc5 {[%clk 0:00:57.6]} 20. Be3 {[%clk 0:00:40.7]} 20... Rac8
{[%clk 0:00:52.9]} 21. Bd4 {[%clk 0:00:37.1]} 21... f6 {[%clk 0:00:26.8]} 22.
Kf1 {[%clk 0:00:34.4]} 22... Nxb3 {[%clk 0:00:18.2]} 23. axb3 {[%clk 0:00:31.7]}
23... Re8 {[%clk 0:00:18.3]} 24. c3 {[%clk 0:00:21.9]} 24... bxc3 {[%clk
0:00:17.5]} 25. bxc3 {[%clk 0:00:22.2]} 25... Qb7 {[%clk 0:00:14.4]} 26. Qc2
{[%clk 0:00:19.1]} 26... Kg8 {[%clk 0:00:12.6]} 27. Kg1 {[%clk 0:00:17.4]} 27...
Qd7 {[%clk 0:00:11.5]} 28. Qf2 {[%clk 0:00:15.8]} 28... a6 {[%clk 0:00:10.2]}
29. b4 {[%clk 0:00:14.2]} 29... Bf5 {[%clk 0:00:09.1]} 30. Bc5 {[%clk
0:00:13.8]} 30... Bg6 {[%clk 0:00:06]} 31. Re3 {[%clk 0:00:13.1]} 31... Rxe3
{[%clk 0:00:05.4]} 32. Qxe3 {[%clk 0:00:14]} 32... Re8 {[%clk 0:00:05.6]} 33.
Qd4 {[%clk 0:00:13.7]} 33... Bc2 {[%clk 0:00:04.4]} 34. Qxd5+ {[%clk 0:00:11]}
34... Qxd5 {[%clk 0:00:04.6]} 35. Rxd5 {[%clk 0:00:11.2]} 35... Bb3 {[%clk
0:00:04.3]} 36. Rd6 {[%clk 0:00:10.9]} 36... Bc4 {[%clk 0:00:04.7]} 37. Rd4
{[%clk 0:00:10.5]} 37... Bb5 {[%clk 0:00:04.4]} 38. c4 {[%clk 0:00:10.9]} 38...
Bc6 {[%clk 0:00:04.8]} 39. Rd6 {[%clk 0:00:10.6]} 39... Bb7 {[%clk 0:00:05.2]}
40. Rb6 {[%clk 0:00:10.3]} 40... Bc8 {[%clk 0:00:05.4]} 41. Kf2 {[%clk
0:00:09.9]} 41... Kf7 {[%clk 0:00:04.8]} 42. Rc6 {[%clk 0:00:09.4]} 42... Bb7
{[%clk 0:00:03.6]} 43. Rc7+ {[%clk 0:00:09.7]} 43... Kg6 {[%clk 0:00:03.7]} 44.
Rxb7 {[%clk 0:00:09.8]} 44... Rc8 {[%clk 0:00:04]} 45. Rb6 {[%clk 0:00:09.8]}
45... a5 {[%clk 0:00:04.1]} 46. Rb5 {[%clk 0:00:06.8]} 46... axb4 {[%clk
0:00:04.1]} 47. Bxb4 {[%clk 0:00:07.5]} 47... Rxc4 {[%clk 0:00:04.3]} 48. Bd2
{[%clk 0:00:08.2]} 48... Rc2 {[%clk 0:00:04.5]} 49. Ke2 {[%clk 0:00:08.9]} 49...
h5 {[%clk 0:00:04.6]} 50. g3 {[%clk 0:00:08.6]} 50... Ra2 {[%clk 0:00:05]} 51.
Rb3 {[%clk 0:00:07.8]} 51... Ra4 {[%clk 0:00:04.8]} 52. Ke3 {[%clk 0:00:08.1]}
52... h4 {[%clk 0:00:05.1]} 53. Bc3 {[%clk 0:00:07.9]} 53... hxg3 {[%clk
0:00:04.1]} 54. hxg3 {[%clk 0:00:08.8]} 54... Ra2 {[%clk 0:00:04]} 55. Bd4
{[%clk 0:00:08.7]} 55... Ra4 {[%clk 0:00:04]} 56. f4 {[%clk 0:00:08.7]} 56...
Rc4 {[%clk 0:00:03.7]} 57. Ke4 {[%clk 0:00:08.7]} 57... Ra4 {[%clk 0:00:01.3]}
58. f5+ {[%clk 0:00:09.1]} 1-0